bitfinex/quotes_SOLUSD_20240624
["timestamp","ask_amount","ask_price","bid_price","bid_amount"]
[1719247732796,7.896,126.65,126.59,6.4329]
[1719247733004,7.8964,126.64,126.59,6.4329]
[1719247733181,7.896,126.65,126.59,6.4329]
[1719247733795,7.8965,126.64,126.59,6.4329]
[1719247734013,7.896,126.65,126.59,6.4329]
[1719247734692,0.17,126.64,126.59,6.4329]
[1719247734895,27.94830944,126.67,126.6,15.3048]
[1719247735085,8.21590944,126.67,126.6,15.3048]
[1719247735285,7.8933,126.69,126.6,15.3048]
[1719247735794,7.8951,126.67,126.6,15.3048]
[1719247736014,56.29963022,126.7,126.6,15.3048]
[1719247736184,7.8955,126.66,126.6,15.3048]
[1719247736506,0.34,126.65,126.6,15.3048]
[1719247736696,0.17,126.65,126.6,15.3048]
[1719247737376,0.34,126.66,126.6,15.3048]
[1719247737580,0.34,126.67,126.6,15.3048]
[1719247737881,7.8941,126.68,126.6,15.3048]
[1719247738394,7.8959,126.65,126.6,15.3048]
[1719247738610,7.8965,126.64,126.6,15.3048]
[1719247738979,19.7353,126.68,126.6,15.3048]
[1719247739179,7.8955,126.66,126.6,15.3048]
[1719247739393,0.34,126.65,126.6,15.3048]
[1719247739596,0.17,126.65,126.6,15.3048]
[1719247739999,0.17,126.66,126.6,15.3048]
[1719247740204,8.0653,126.66,126.6,15.3048]
[1719247740499,0.17,126.65,126.6,15.3048]
[1719247740878,7.8944,126.68,126.6,15.3048]
[1719247741074,7.8936,126.69,126.6,15.3048]
[1719247741279,16.10973022,126.7,126.6,15.3048]
[1719247741512,16.10953022,126.7,126.6,15.3048]
[1719247741690,8.21693022,126.7,126.61,6.4422]
[1719247741887,8.21693022,126.7,126.62,0.39882922]
[1719247742218,8.21693022,126.7,126.61,6.4422]
[1719247742724,8.21693022,126.7,126.61,53.8522]
[1719247742911,8.21693022,126.7,126.61,6.4422]
[1719247743215,7.8933,126.69,126.61,6.4422]
[1719247743400,8.21693022,126.7,126.61,6.4422]
[1719247743603,7.8956,126.66,126.61,6.4422]
[1719247743982,0.34,126.65,126.61,6.4422]
[1719247744619,8.2362,126.65,126.61,6.4422]
[1719247744783,0.34,126.65,126.61,6.4422]
[1719247744980,7.8974,126.63,126.6,15.3048]
[1719247745191,0.34,126.62,126.58,6.1827]
[1719247745422,0.17,126.62,126.58,6.1827]
[1719247745590,0.34,126.62,126.58,6.1827]
[1719247747186,0.34,126.62,126.57,15.5974]
[1719247747616,8.2379,126.62,126.57,15.5974]
[1719247747987,8.2379,126.62,126.53,16.1804]
[1719247747988,0.34,126.62,126.53,16.1804]
[1719247748196,7.8991,126.6,126.53,16.1804]
[1719247748400,0.34,126.59,126.53,16.1804]
[1719247748594,52.37,126.59,126.45,15.7106]
[1719247748827,7.9022,126.55,126.45,15.7106]
[1719247749125,7.9034,126.53,126.45,15.7106]
[1719247749325,0.34,126.52,126.45,15.7106]
[1719247750119,7.9053,126.5,126.45,15.7106]
[1719247750300,0.34,126.49,126.45,15.7106]
[1719247750498,8.2458,126.49,126.45,15.7106]
[1719247750697,0.34,126.49,126.45,15.7106]
[1719247751424,0.34,126.5,126.45,15.7106]
[1719247751593,0.17,126.5,126.45,15.7106]
[1719247751797,5.96231252,126.59,126.45,15.7106]
[1719247752000,5.96231252,126.59,126.46,6.1801]
[1719247752400,5.96231252,126.59,126.45,15.7106]
[1719247752401,7.8983,126.61,126.48,22.7911]
[1719247752604,6.5542,126.64,126.49,0.34]
[1719247752822,28.35,126.64,126.5,22.7911]
[1719247753105,7.8977,126.62,126.5,22.7911]
[1719247753309,28.35,126.64,126.5,22.7911]
[1719247753310,52.05,126.64,126.5,22.7911]
[1719247753521,7.8997,126.59,126.5,22.7911]
[1719247753734,7.9001,126.58,126.5,22.7911]
[1719247753907,7.8996,126.59,126.5,22.7911]
[1719247754107,0.34,126.58,126.5,22.7911]
[1719247754408,7.9008,126.57,126.5,22.7911]
[1719247754716,28.35,126.6,126.5,22.7911]
[1719247754717,2.24287852,126.62,126.5,22.7911]
[1719247754905,2.24287852,126.62,126.51,0.17]
[1719247755100,2.24287852,126.62,126.53,16.1507]
[1719247755320,2.24287852,126.62,126.51,0.17]
[1719247755321,2.24287852,126.62,126.56,15.6491]
[1719247757847,16.10112552,126.69,126.57,6.6101]
[1719247758020,8.20782552,126.69,126.58,15.4355]
[1719247758221,7.8946,126.67,126.58,15.4355]
[1719247758613,10.45070404,126.69,126.58,62.8455]
[1719247758833,8.20782552,126.69,126.59,53.7447]
[1719247759037,8.20782552,126.69,126.59,53.9147]
[1719247759465,8.20782552,126.69,126.6,62.74]
[1719247759612,8.20782552,126.69,126.61,0.34]
[1719247759814,8.20782552,126.69,126.6,62.74]
[1719247760234,8.20782552,126.69,126.61,0.34]
[1719247760710,8.20782552,126.69,126.62,6.5929]
[1719247761330,8.20782552,126.69,126.62,54.0029]
[1719247761539,28.35,126.78,126.64,62.798]
[1719247761747,7.8888,126.77,126.65,6.2126]
[1719247762039,39.477647,126.77,126.65,6.2126]
[1719247762227,31.589047,126.77,126.65,6.2126]
[1719247762538,53.55262552,126.77,126.65,6.2126]
[1719247762714,7.8896,126.75,126.65,6.2126]
[1719247762903,41.72082552,126.77,126.65,6.2126]
[1719247763105,33.83192552,126.77,126.65,6.2126]
[1719247763331,10.13117852,126.77,126.65,6.2126]
[1719247763639,7.889,126.76,126.65,6.2126]
[1719247764144,0.17,126.75,126.65,6.2126]
[1719247764331,2.24287852,126.77,126.65,53.6226]
[1719247764536,2.24287852,126.77,126.66,0.34]
[1719247765422,2.24287852,126.77,126.65,53.6226]
[1719247765423,10.13117852,126.77,126.65,53.6226]
[1719247765627,0.17,126.76,126.66,0.34]
[1719247765826,2.24287852,126.77,126.66,1.91550365]
[1719247766022,2.24287852,126.77,126.67,22.4841]
[1719247766222,10.13127852,126.77,126.67,22.4841]
[1719247766427,7.8895,126.76,126.67,22.4841]
[1719247767045,7.8883,126.77,126.67,22.4841]
[1719247767236,0.17,126.76,126.67,22.4841]
[1719247767840,0.17,126.77,126.67,22.4841]
[1719247768755,0.34,126.78,126.67,22.4841]
[1719247768923,0.34,126.78,126.67,69.8941]
[1719247769339,73.74288402,126.8,126.68,0.17]
[1719247769532,31.580507,126.8,126.68,0.34]
[1719247769730,7.887,126.79,126.68,0.34]
[1719247769930,7.887,126.8,126.68,0.34]
[1719247770123,7.887,126.8,126.69,6.1052]
[1719247770328,7.8846,126.83,126.7,62.8324]
[1719247770623,7.8855,126.82,126.7,62.8324]
[1719247770942,31.574973,126.83,126.71,6.1809]
[1719247771155,37.664445,126.83,126.71,6.1809]
[1719247771349,6.089472,126.83,126.73,6.1809]
[1719247771535,6.089472,126.83,126.73,53.5909]
[1719247772046,7.8832,126.86,126.74,0.34]
[1719247772232,7.8832,126.86,126.75,15.1736]
[1719247772447,7.8832,126.86,126.76,6.1809]
[1719247773149,28.35,126.87,126.76,53.5909]
[1719247773344,7.8816,126.88,126.77,0.34]
[1719247773737,39.77183998,126.89,126.76,6.1809]
[1719247774036,49.8960185,126.89,126.77,69.5185]
[1719247774250,19.7033,126.89,126.77,21.9385]
[1719247774425,7.8825,126.87,126.77,21.9385]
[1719247774629,7.8827,126.86,126.77,21.9385]
[1719247774956,7.8833,126.85,126.77,21.9385]
[1719247775244,7.8828,126.86,126.77,21.9385]
[1719247775445,0.17,126.85,126.77,21.9385]
[1719247775648,8.21157216,126.88,126.77,69.3485]
[1719247775854,41.53160019,126.89,126.77,69.3485]
[1719247776062,7.882,126.88,126.77,69.3485]
[1719247776229,2.08765819,126.89,126.77,69.3485]
[1719247776230,7.882,126.87,126.77,69.3485]
[1719247776430,7.8815,126.88,126.77,69.3485]
[1719247777338,0.17,126.87,126.77,69.3485]
[1719247777529,8.0515,126.88,126.77,69.3485]
[1719247777730,8.0522,126.87,126.77,69.3485]
[1719247778262,0.17,126.87,126.77,69.3485]
[1719247778451,7.882,126.87,126.77,69.3485]
[1719247778652,0.17,126.88,126.77,69.3485]
[1719247779156,6.1858,126.94,126.79,63.0559]
[1719247779450,7.8808,126.89,126.81,6.1225]
[1719247779653,7.8823,126.87,126.81,6.1225]
[1719247779844,7.8815,126.88,126.81,6.1225]
[1719247780555,0.34,126.87,126.81,6.1225]
[1719247781058,0.17,126.87,126.81,6.1225]
[1719247781234,0.34,126.87,126.81,6.1225]
[1719247781435,8.2215,126.88,126.81,6.1225]
[1719247781736,0.34,126.88,126.81,6.1225]
[1719247782064,28.69,126.88,126.81,6.1225]
[1719247782252,7.8834,126.85,126.81,6.1225]
[1719247782563,0.34,126.84,126.81,6.1225]
[1719247783738,0.34,126.85,126.81,6.1225]
[1719247783943,7.8843,126.84,126.81,6.1225]
[1719247784147,8.2245,126.83,126.79,15.6459]
[1719247784466,0.17,126.82,126.79,15.6459]
[1719247785076,8.0552,126.82,126.79,15.6459]
[1719247785262,0.17,126.81,126.79,15.6459]
[1719247785461,8.0559,126.81,126.78,6.4199]
[1719247785781,7.8871,126.79,126.75,22.4515]
[1719247785973,0.34,126.78,126.75,22.4515]
[1719247787160,0.17,126.77,126.75,22.4515]
[1719247787351,7.8889,126.76,126.71,21.6516]
[1719247787673,0.34,126.75,126.71,21.6516]
[1719247787971,8.2296,126.75,126.71,21.6516]
[1719247788341,0.34,126.75,126.68,6.3663]
[1719247788544,7.8924,126.71,126.68,6.3663]
[1719247788756,0.34,126.7,126.68,6.3663]
[1719247788956,28.31,126.73,126.68,6.3663]
[1719247789163,0.34,126.72,126.68,6.3663]
[1719247789866,7.8927,126.7,126.57,280.8458]
[1719247790051,8.559914,126.72,126.57,21.7458]
[1719247790666,7.895,126.67,126.57,21.7458]
[1719247790873,0.34,126.68,126.57,21.7458]
[1719247791065,0.17,126.68,126.57,21.7458]
[1719247791371,0.17,126.7,126.57,21.7458]
[1719247791575,7.894,126.68,126.57,21.7458]
[1719247791880,0.17,126.67,126.57,21.7458]
[1719247792181,7.893,126.7,126.58,0.17]
[1719247792376,8.21935865,126.72,126.57,21.7458]
[1719247792554,0.34,126.71,126.57,21.7458]
[1719247792757,7.8928,126.7,126.57,21.7458]
[1719247792979,0.34,126.69,126.57,21.7458]
[1719247793277,8.2334,126.69,126.57,21.7458]
[1719247793875,8.2334,126.69,126.58,0.17]
[1719247794364,0.34,126.69,126.57,21.7458]
[1719247794673,7.8947,126.67,126.57,21.7458]
[1719247794888,0.34,126.66,126.57,21.7458]
[1719247795069,8.2353,126.66,126.57,21.7458]
[1719247795798,8.21935865,126.72,126.6,53.4609]
[1719247795947,7.8884,126.77,126.61,0.34]
[1719247796148,7.8891,126.76,126.61,0.34]
[1719247796353,8.21282047,126.77,126.61,0.34]
[1719247796354,8.21282047,126.77,126.62,6.0509]
[1719247796572,8.21282047,126.77,126.63,16.3049]
[1719247796573,22.19907662,126.77,126.63,16.3049]
[1719247796871,7.8889,126.76,126.63,16.3049]
[1719247797054,7.8896,126.75,126.63,16.3049]
[1719247797255,34.03187662,126.77,126.63,15.9649]
[1719247797555,7.8919,126.72,126.63,15.9649]
[1719247797876,0.17,126.71,126.63,15.9649]
[1719247798256,0.17,126.72,126.63,15.9649]
[1719247798472,28.31,126.74,126.63,15.9649]
[1719247798771,6.09765615,126.77,126.64,0.17]
[1719247798946,56.62,126.78,126.64,0.34]
[1719247799151,72.71783354,126.78,126.64,0.34]
[1719247799379,64.82973354,126.78,126.64,0.34]
[1719247799557,72.71753354,126.78,126.64,0.34]
[1719247799758,64.82973354,126.78,126.64,47.75]
[1719247799959,6.11480693,126.79,126.66,47.41]
[1719247800206,31.577599,126.82,126.68,63.1906]
[1719247800477,7.8876,126.78,126.68,15.7806]
[1719247800653,7.8872,126.79,126.68,15.7806]
[1719247801068,7.8879,126.78,126.68,15.7806]
[1719247801267,48.0264,126.8,126.68,15.7806]
[1719247801471,50.26927852,126.8,126.68,15.7806]
[1719247801855,28.31,126.76,126.68,15.7806]
[1719247802262,7.8903,126.74,126.68,15.7806]
[1719247802454,8.0608,126.73,126.68,15.7806]
[1719247802650,7.8908,126.73,126.68,15.7806]
[1719247802885,0.34,126.72,126.68,15.7806]
[1719247803069,28.31,126.76,126.68,15.7806]
[1719247803250,0.34,126.75,126.68,15.7806]
[1719247804064,7.8906,126.74,126.68,15.7806]
[1719247804263,0.34,126.73,126.68,15.7806]
[1719247804512,8.2308,126.73,126.68,15.7806]
[1719247804670,8.2308,126.73,126.65,6.5407]
[1719247804671,7.893,126.7,126.65,6.5407]
[1719247804867,0.34,126.69,126.65,6.5407]
[1719247805891,7.8922,126.71,126.61,6.3118]
[1719247805892,7.8949,126.67,126.61,6.3118]
[1719247806198,0.17,126.68,126.59,15.0536]
[1719247806199,7.8962,126.65,126.59,15.0536]
[1719247806363,8.2364,126.64,126.59,15.0536]
[1719247806562,8.0664,126.64,126.59,15.0536]
[1719247806858,0.17,126.64,126.59,15.0536]
[1719247807079,0.17,126.66,126.59,15.0536]
[1719247807256,28.31,126.72,126.59,15.0536]
[1719247807584,7.8926,126.71,126.59,15.0536]
[1719247807759,36.2016,126.72,126.59,15.0536]
[1719247807960,28.31,126.72,126.59,15.0536]
[1719247808165,28.31,126.72,126.6,0.34]
[1719247808585,36.2014,126.72,126.6,0.34]
[1719247808761,7.8912,126.73,126.61,6.3427]
[1719247808959,7.891,126.73,126.61,6.3427]
[1719247809155,48.0358,126.74,126.61,6.3427]
[1719247809375,71.7158,126.74,126.61,6.3427]
[1719247809574,7.8949,126.67,126.61,6.3427]
[1719247809768,7.8947,126.67,126.61,6.3427]
[1719247809966,8.2352,126.66,126.61,6.3427]
[1719247810163,8.2356,126.66,126.61,6.3427]
[1719247810361,7.8959,126.65,126.61,6.3427]
[1719247810569,0.34,126.64,126.59,15.0536]
[1719247810785,8.0665,126.64,126.59,15.0536]
[1719247810964,0.17,126.63,126.59,15.0536]
[1719247811682,0.34,126.64,126.59,15.0536]
[1719247812584,0.34,126.65,126.59,15.0536]
[1719247813486,7.8926,126.71,126.59,15.0536]
[1719247813687,8.2080379,126.69,126.59,15.0536]
[1719247813984,7.8949,126.67,126.59,15.0536]
[1719247814162,8.2080379,126.69,126.59,15.0536]
[1719247814987,7.8968,126.64,126.59,15.0536]
[1719247815194,8.2080379,126.69,126.59,15.0536]
[1719247815195,7.896,126.65,126.59,15.0536]
[1719247815380,7.8953,126.66,126.59,15.0536]
[1719247815693,16.1014379,126.69,126.59,15.0536]
[1719247816490,8.2080379,126.69,126.59,62.4636]
[1719247816685,8.2080379,126.69,126.59,15.0536]
[1719247816915,7.8936,126.69,126.59,15.0536]
[1719247817112,7.8926,126.7,126.59,15.0536]
[1719247817312,39.81105753,126.71,126.59,15.0536]
[1719247817313,16.10094653,126.71,126.6,6.4927]
[1719247817486,8.20874653,126.71,126.6,6.4927]
[1719247817686,7.8927,126.7,126.6,6.4927]
[1719247817986,39.81080253,126.71,126.6,6.4927]
[1719247817987,0.17,126.69,126.6,6.4927]
[1719247818199,16.10094653,126.71,126.6,6.4927]
[1719247818905,8.20874653,126.71,126.61,0.62016697]
[1719247819112,31.599066,126.72,126.61,0.45016697]
[1719247819300,7.8916,126.72,126.61,0.45016697]
[1719247819793,79.92687448,126.74,126.61,0.45016697]
[1719247819996,7.8951,126.66,126.6,6.4927]
[1719247820306,28.31,126.7,126.6,6.4927]
[1719247820307,8.2346,126.67,126.6,6.4927]
[1719247820492,0.34,126.67,126.6,6.4927]
[1719247821113,0.34,126.68,126.6,6.4927]
[1719247821283,0.34,126.69,126.6,6.4927]
[1719247821484,0.17,126.67,126.6,6.4927]
[1719247821689,0.34,126.69,126.6,6.4927]
[1719247822909,7.8908,126.73,126.62,47.41]
[1719247823120,36.52077448,126.74,126.63,6.0028]
[1719247823121,8.21077448,126.74,126.63,6.0028]
[1719247823292,16.10127448,126.74,126.63,6.0028]
[1719247823497,8.21077448,126.74,126.63,53.4128]
[1719247823710,31.596044,126.76,126.63,53.4128]
[1719247823907,39.80404944,126.76,126.63,53.4128]
[1719247824108,8.20800544,126.76,126.66,53.637]
[1719247824398,2.24287852,126.79,126.68,21.6241]
[1719247824700,2.24287852,126.79,126.68,69.0341]
[1719247824902,8.20868918,126.8,126.69,0.34]
[1719247825105,7.8865,126.8,126.68,69.0341]
[1719247825499,8.20812638,126.81,126.69,0.17]
[1719247825717,8.20812638,126.81,126.69,0.34]
[1719247825921,8.20812638,126.81,126.7,6.2228]
[1719247826127,8.20812638,126.81,126.71,15.347]
[1719247826413,7.8853,126.82,126.71,15.347]
[1719247827022,39.7831072,126.83,126.71,15.347]
[1719247827404,0.17,126.82,126.71,15.347]
[1719247827719,7.8859,126.81,126.71,15.347]
[1719247827916,0.17,126.8,126.71,15.347]
[1719247828121,0.17,126.82,126.71,15.347]
[1719247828319,0.17,126.82,126.72,6.5668]
[1719247828702,18.33507772,126.83,126.72,6.5668]
[1719247829016,10.45047772,126.83,126.72,6.5668]
[1719247829417,7.8852,126.82,126.72,6.5668]
[1719247829609,0.17,126.81,126.72,6.5668]
[1719247829922,0.17,126.82,126.72,6.5668]
[1719247830219,8.2252,126.82,126.72,6.5668]
[1719247830421,8.2253,126.82,126.72,6.5668]
[1719247830808,7.8859,126.81,126.72,6.5668]
[1719247831004,0.34,126.8,126.72,6.5668]
[1719247831303,0.34,126.82,126.72,6.5668]
[1719247831514,10.45047772,126.83,126.72,53.9768]
[1719247831719,2.24287852,126.83,126.73,0.34]
[1719247831905,7.8834,126.85,126.75,6.1532]
[1719247832423,7.8841,126.84,126.75,6.1532]
[1719247832620,39.77249986,126.86,126.75,6.1532]
[1719247832806,16.09106986,126.86,126.75,6.1532]
[1719247833005,16.09106986,126.86,126.75,53.5632]
[1719247833509,8.20796986,126.86,126.76,63.3787]
[1719247833711,28.31,126.9,126.77,6.284]
[1719247833922,39.76580741,126.89,126.77,53.694]
[1719247834125,7.882,126.88,126.77,53.694]
[1719247834419,7.8818,126.88,126.77,53.694]
[1719247834628,7.8818,126.88,126.78,0.17]
[1719247834806,7.8818,126.88,126.77,53.694]
[1719247835407,0.17,126.87,126.77,53.694]
[1719247835616,0.17,126.88,126.77,53.694]
[1719247836130,0.34,126.88,126.77,53.694]
[1719247836341,8.20787541,126.89,126.8,47.41]
[1719247836509,7.8797,126.91,126.79,53.7899]
[1719247836715,59.860379,126.92,126.8,0.17]
[1719247836907,7.8798,126.91,126.8,0.17]
[1719247837228,68.06960665,126.92,126.82,6.5474]
[1719247837229,50.36445605,126.92,126.82,6.5474]
[1719247837418,28.31,126.88,126.78,6.5474]
[1719247837630,7.8842,126.84,126.78,6.5474]
[1719247837836,7.8843,126.84,126.78,6.5474]
[1719247838017,48.0143,126.88,126.78,6.5474]
[1719247838018,7.8835,126.85,126.78,6.5474]
[1719247838432,7.8839,126.84,126.78,6.5474]
[1719247838612,0.34,126.83,126.78,6.5474]
[1719247840809,8.2249,126.83,126.78,6.5474]
[1719247841015,7.8862,126.81,126.78,6.5474]
[1719247841210,0.34,126.83,126.77,15.1267]
[1719247841211,7.8871,126.79,126.77,15.1267]
[1719247841435,0.34,126.78,126.75,6.4344]
[1719247842149,0.17,126.77,126.75,6.4344]
[1719247842314,7.8878,126.78,126.75,6.4344]
[1719247842514,0.34,126.77,126.75,6.4344]
[1719247842825,0.17,126.76,126.72,21.6652]
[1719247843022,8.059,126.76,126.72,21.6652]
[1719247843224,0.17,126.75,126.72,21.6652]
[1719247843544,8.0599,126.75,126.65,15.7692]
[1719247843847,0.17,126.74,126.65,15.7692]
[1719247844016,7.8918,126.72,126.65,15.7692]
[1719247844212,0.17,126.71,126.65,15.7692]
[1719247844421,0.34,126.71,126.65,15.7692]
[1719247844626,7.8935,126.69,126.65,15.7692]
[1719247844951,0.17,126.68,126.6,15.7692]
[1719247845253,8.2343,126.68,126.6,15.7692]
[1719247845551,36.5441,126.68,126.6,15.7692]
[1719247845913,28.65,126.68,126.6,15.7692]
[1719247846411,38.7538,126.74,126.6,15.7692]
[1719247846412,25.82077874,126.75,126.6,15.7692]
[1719247846616,28.31,126.74,126.6,15.7692]
[1719247847060,7.8926,126.7,126.6,15.7692]
[1719247847348,7.8921,126.71,126.6,15.7692]
[1719247847838,8.0627,126.7,126.6,15.7692]
[1719247848039,0.17,126.7,126.6,15.7692]
[1719247848237,8.21108613,126.73,126.61,0.34]
[1719247848939,16.10198613,126.73,126.61,0.34]
[1719247849135,7.8915,126.72,126.61,0.34]
[1719247849345,7.8927,126.7,126.6,15.7692]
[1719247849570,7.8934,126.69,126.6,15.7692]
[1719247849840,8.0644,126.68,126.6,15.7692]
[1719247850143,7.8951,126.66,126.6,15.7692]
[1719247850315,0.17,126.65,126.6,15.7692]
[1719247850733,0.34,126.65,126.6,15.7692]
[1719247852040,28.31,126.7,126.6,15.7692]
[1719247852222,0.34,126.69,126.6,15.7692]
[1719247852545,0.17,126.68,126.6,15.7692]
[1719247852844,7.8937,126.69,126.6,15.7692]
[1719247853014,8.2341,126.68,126.6,15.7692]
[1719247854966,0.34,126.64,126.6,15.7692]
[1719247855661,0.17,126.63,126.6,15.7692]
[1719247855860,8.236,126.65,126.6,15.7692]
[1719247856637,7.8964,126.64,126.6,15.7692]
[1719247856840,0.34,126.63,126.6,15.7692]
[1719247857773,0.17,126.62,126.6,15.7692]
[1719247858074,0.34,126.64,126.6,15.7692]
[1719247858248,0.17,126.64,126.6,15.7692]
[1719247858455,0.34,126.65,126.6,15.7692]
[1719247858646,8.2361,126.65,126.6,15.7692]
[1719247858847,0.34,126.65,126.6,15.7692]
[1719247859962,8.21413034,126.66,126.6,15.7692]
[1719247860173,28.31,126.67,126.6,15.7692]
[1719247860554,36.2049,126.67,126.6,15.7692]
[1719247860854,28.31,126.67,126.6,15.7692]
[1719247861060,7.8975,126.63,126.59,6.5497]
[1719247861259,0.17,126.62,126.59,6.5497]
[1719247861453,28.31,126.63,126.56,16.5175]
[1719247861664,7.8999,126.59,126.56,16.5175]
[1719247861850,8.2402,126.58,126.55,6.0879]
[1719247862053,8.0702,126.58,126.55,6.0879]
[1719247862251,0.17,126.57,126.55,6.0879]
[1719247862861,7.9015,126.56,126.52,16.5175]
[1719247863052,0.34,126.55,126.52,16.5175]
[1719247863751,7.9024,126.55,126.5,6.4981]
[1719247863949,7.9034,126.53,126.48,15.9487]
[1719247864175,0.34,126.52,126.48,15.9487]
[1719247864469,0.17,126.51,126.46,6.2525]
[1719247864672,0.17,126.52,126.46,6.2525]
[1719247864876,0.34,126.52,126.46,6.2525]
[1719247865175,7.9057,126.5,126.44,15.555]
[1719247865352,0.34,126.49,126.44,15.555]
[1719247865752,8.2458,126.49,126.44,15.555]
[1719247865951,0.34,126.49,126.44,15.555]
[1719247866148,0.34,126.49,126.42,6.014]
[1719247866149,7.9077,126.46,126.42,6.014]
[1719247866370,28.31,126.43,126.37,6.6128]
[1719247866570,7.9102,126.42,126.37,6.6128]
[1719247866872,0.17,126.41,126.37,6.6128]
[1719247867257,0.17,126.41,126.34,15.637]
[1719247867458,7.9133,126.37,126.31,6.5339]
[1719247867669,0.17,126.36,126.31,6.5339]
[1719247868473,28.44,126.39,126.31,6.5339]
[1719247868690,56.88,126.48,126.31,6.5339]
[1719247868865,7.9085,126.45,126.31,6.5339]
[1719247869176,36.3464,126.48,126.32,0.17]
[1719247869354,28.44,126.44,126.31,6.5339]
[1719247869754,28.44,126.48,126.32,0.34]
[1719247869975,56.88,126.54,126.35,47.37]
[1719247870171,28.44,126.54,126.36,20.34]
[1719247870355,7.9033,126.53,126.36,20.34]
[1719247870557,28.44,126.54,126.36,20.34]
[1719247870558,28.44,126.54,126.37,22.7704]
[1719247870758,8.20407147,126.52,126.38,30.34]
[1719247870971,8.20407147,126.52,126.38,468.11]
[1719247871176,28.44,126.56,126.39,22.7704]
[1719247871374,8.20677702,126.55,126.4,0.34]
[1719247871676,16.10927702,126.55,126.39,22.7704]
[1719247871851,28.44,126.52,126.39,22.7704]
[1719247872052,28.44,126.54,126.4,47.54]
[1719247872283,28.44,126.54,126.41,0.17]
[1719247872461,28.44,126.54,126.4,47.37]
[1719247873372,7.9038,126.53,126.4,47.37]
[1719247873680,0.34,126.52,126.4,47.37]
[1719247873875,28.44,126.54,126.41,0.34]
[1719247874186,8.20677702,126.55,126.41,0.34]
[1719247874356,8.20677702,126.55,126.42,47.37]
[1719247874561,8.20677702,126.55,126.43,0.34]
[1719247874789,8.20677702,126.55,126.44,53.4376]
[1719247875084,28.44,126.6,126.46,63.9795]
[1719247875263,8.21113241,126.58,126.46,16.6095]
[1719247875581,7.9028,126.54,126.46,16.6095]
[1719247875783,36.3419,126.56,126.46,16.6095]
[1719247875957,28.44,126.56,126.46,16.6095]
[1719247876156,28.61,126.55,126.46,16.6095]
[1719247876359,36.512,126.55,126.46,16.6095]
[1719247876588,28.61,126.55,126.46,16.6095]
[1719247877157,8.21113241,126.58,126.46,63.9795]
[1719247877365,8.21113241,126.58,126.47,0.86760709]
[1719247877592,8.21113241,126.58,126.46,63.9795]
[1719247877764,28.44,126.6,126.48,47.54]
[1719247878288,28.44,126.6,126.46,16.6095]
[1719247878459,28.44,126.6,126.46,63.9795]
[1719247878865,52.12,126.6,126.46,16.6095]
[1719247879066,28.44,126.53,126.46,16.6095]
[1719247879283,8.2443,126.52,126.46,16.6095]
[1719247879598,0.34,126.52,126.46,16.6095]
[1719247881076,8.244,126.52,126.46,16.6095]
[1719247881280,0.34,126.52,126.44,6.0676]
[1719247881459,7.9059,126.49,126.44,6.0676]
[1719247881661,8.2468,126.48,126.41,15.0649]
[1719247881895,7.9077,126.46,126.39,6.187]